Cogmind - Beta 16 @@@ ROGUE MODE // 2025.10.29 @ 18:53:26 Player: The Sun Result: Destroyed by G-47 Trooper with Particle Gun Performance ------------- Evolutions (2) 1000 Regions Visited (3) 600 Robots Destroyed (42) 210 Value Destroyed (1129) 1129 Prototype IDs (1) 20 Alien Tech Used (0) 0 Bonus (0) 0 TOTAL SCORE: 2959 Bonus ------- None Cogmind --------- Core Integrity 0/550 Matter 61/300 Energy 160/160 System Corruption 0% Temperature Cool (9) Movement Walking (120) Location -8/Materials Parts ------- > --- POWER (2) -------- Light Nuclear Core > --- PROPULSION (3) --- Aluminum Leg Aluminum Leg > --- UTILITY (3) ------ Improved Heat Sink Small Storage Unit > --- WEAPON (3) ------- Assault Rifle > --- INVENTORY (8) ---- (None) Peak State ------------ > --- POWER ------------ Improved Ion Engine Light Nuclear Core > --- PROPULSION ------- Aluminum Leg Aluminum Leg Titanium Leg > --- UTILITY ---------- Improved Heat Sink Small Storage Unit Light Armor Plating > --- WEAPON ----------- Beam Cannon Autogun Improved Assault Rifle > --- INVENTORY -------- Ion Engine Particle Cannon Assault Cannon Grenade Launcher [Rating: 21] Favorites ----------- Power Ion Engine Engine Ion Engine Power Core Light Nuclear Core Propulsion Aluminum Leg Leg Aluminum Leg Utility Small Storage Unit Device Improved Heat Sink Storage Small Storage Unit Protection Light Armor Plating Weapon Improved Assault Rifle Energy Gun Particle Gun Energy Cannon Beam Cannon Ballistic Gun Improved Assault Rifle Ballistic Cannon Assault Cannon Launcher Grenade Launcher Build | -11 -10 -9 -8 ------- Run | Yrd Mat Mat Mat Slots Evolved 4 | . . 2 2 Power 1 | . . 1 . Propulsion 1 | . . 1 . Utility 1 | . . . 1 Weapon 1 | . . . 1 Parts Attached 34 | 6 2 11 15 Power 8 | 1 . 4 3 Engine 5 | 1 . 4 . Core 3 | . . . 3 Reactor . | . . . . Propulsion 11 | 2 . 4 5 Treads . | . . . . Leg 11 | 2 . 4 5 Wheel . | . . . . Hover . | . . . . Flight . | . . . . Utility 4 | 1 1 . 2 Device 2 | . 1 . 1 Storage 1 | 1 . . . Processor . | . . . . Hackware . | . . . . Protection 1 | . . . 1 Artifact . | . . . . Weapon 11 | 2 1 3 5 Energy Gun 2 | 1 1 . . Energy Cannon 2 | . . 1 1 Ballistic Gun 5 | 1 . 2 2 Ballistic Cannon 1 | . . . 1 Launcher 1 | . . . 1 Special Weapon . | . . . . Impact Weapon . | . . . . Slashing Weapon . | . . . . Piercing Weapon . | . . . . Special Melee Weapon . | . . . . Unidentified Prototypes 1 | . . 1 . Parts Lost 18 | . . 1 17 Power 4 | . . . 4 Propulsion 5 | . . . 5 Utility 2 | . . . 2 Weapon 7 | . . 1 6 Highest Loss Streak 16 | . . 1 16 To Critical Strikes . | . . . . Average Backups 3 | 1 5 4 2 Power . | . 1 . . Propulsion . | . 1 . . Utility . | . . . . Weapon 2 | . 1 2 2 Tool/Special . | . . . . Unused Backups . | . . . . Power . | . . . . Propulsion . | . . . . Utility . | . . . . Weapon . | . . . . Tool/Special . | . . . . Average Slot Usage (%) 91 | . 92 99 73 Engine 16 | . 14 21 9 Leg 28 | . 28 33 17 Device 9 | . 7 11 6 Storage 11 | . 14 11 9 Protection 1 | . . . 4 Energy Gun 6 | . 14 5 . Energy Cannon 4 | . . 5 6 Ballistic Gun 12 | . 14 11 13 Peak Build Rating 21 | 6 10 15 21 Average Rating 12 | 4 8 13 14 On Entrance 7 | . 6 10 14 Avg Prop Armor Cover (%) . | . . . . Naked Turns . | . . . . Heaviest Build 30 | 12 14 24 30 Greatest Support 37 | 20 20 30 37 Greatest Overweight (x) 4 | . . . 4 Average Overweight (x) . | . . . . Largest Inventory Capacity 8 | 8 8 8 8 Average Capacity 7 | 6 8 8 8 Most Carried 7 | 5 7 7 5 Average Carried 3 | 1 5 4 2 Final Capacity 8 | 8 8 8 8 Final Carried 6 | 1 6 4 . Class Distribution -------------------- 59% | Mutant 28% | Scavenger-Mutant 12% | Scavenger-Tank Dominant Class ---------------- Mutant | -10/Materials Scavenger-Mutant | -9/Materials Scavenger-Tank | -8/Materials Resources | -11 -10 -9 -8 ----------- Run | Yrd Mat Mat Mat Matter Collected 714 | 185 103 275 151 Remotely . | . . . . Salvage Created 1179 | . 119 524 536 Parts 81 | . 6 41 34 Haulers Intercepted 1 | . . 1 . Recyclers Shooed . | . . . . Parts Field Recycled . | . . . . Retrieved Matter . | . . . . Parts Self-Destructed . | . . . . Prevented . | . . . . Parts Restored . | . . . . Kills | -11 -10 -9 -8 ------- Run | Yrd Mat Mat Mat Combat Hostiles Destroyed 35 | . 5 15 15 Guns 22 | . 5 12 5 Cannons 8 | . . 3 5 AOE 5 | . . . 5 Classes Destroyed 10 | . 2 3 5 Worker 3 | . . 1 2 Builder 1 | . . . 1 Hauler 1 | . . 1 . Mechanic 1 | . . . 1 Watcher 1 | . . . 1 Swarmer 14 | . 3 7 4 Grunt 13 | . 2 3 8 Duelist 1 | . . . 1 Sentry 6 | . . 5 1 Hunter 1 | . . . 1 Best Kill Streak 12 | . 3 8 12 Combat Bots Only 9 | . 3 7 9 Max Kills in Single Turn 3 | . 1 2 3 Gunslinging 1 | . . 1 . Exploded 3 | . . . 3 Melee . | . . . . Uniques/NPCs Destroyed . | . . . . Combat | -11 -10 -9 -8 -------- Run | Yrd Mat Mat Mat Hostile Shots Fired 300 | . 35 98 167 Missed 96 | . 14 39 43 Hits 204 | . 21 59 124 Melee 3 | . . . 3 Projectile 201 | . 21 59 121 AOE 1 | . . . 1 Critical Strikes 8 | . 1 2 5 Damage Taken 2912 | . 214 667 2031 Core 638 | . 24 63 551 Absorbed by Shields . | . . . . Core Remaining (%) 91 | 100 90 84 . Volleys Fired 95 | 1 10 44 40 Largest 3 | 2 2 2 3 Hottest 128 | 70 85 88 128 Shots Fired 215 | 2 20 87 106 Gun 155 | 2 20 75 58 Cannon 56 | . . 12 44 Launcher 4 | . . . 4 Special . | . . . . Kinetic 123 | 1 10 44 68 Thermal 88 | 1 10 43 34 Explosive 4 | . . . 4 Electromagnetic . | . . . . Robot Hit Streak 11 | . 7 11 8 Robot Miss Streak 7 | . 4 7 3 Penetration Max . | . . . . Secondary Targets 4 | . 2 2 . Max Gunslinging Chain 1 | . 1 1 . Shots Hit Robots 129 | . 13 55 61 Core Hits 73 | . 8 24 41 Critical Kills . | . . . . Critical Parts Destroyed . | . . . . Critical Strikes 1 | . . 1 . Burn 1 | . . 1 . Melee Attacks . | . . . . Impact . | . . . . Slashing . | . . . . Piercing . | . . . . Sneak Attacks . | . . . . Combat Hostiles . | . . . . Follow-up Attacks . | . . . . Damage Inflicted 2740 | . 182 914 1644 Guns 1495 | . 181 773 541 Cannons 670 | . . 141 529 Explosions 573 | . . . 573 Melee . | . . . . Ramming 2 | . 1 . 1 Kinetic 1242 | . 95 479 668 Thermal 923 | . 86 435 402 Explosive 573 | . . . 573 Electromagnetic . | . . . . Impact . | . . . . Slashing . | . . . . Piercing . | . . . . Highest Corruption . | . . . . Average Corruption . | . . . . Corruption Purged . | . . . . Corruption Blocked . | . . . . Overload Shots . | . . . . Overflow Damage 40 | . . . 40 Projectiles . | . . . . Explosions 40 | . . . 40 Melee . | . . . . Knockbacks 2 | . . . 2 Impact . | . . . . Kinetic 2 | . . . 2 Secondary . | . . . . Self-Inflicted Damage 105 | . . . 105 Shots 4 | . . . 4 Rammed . | . . . . Targets Rammed 2 | . 1 . 1 Kicked 2 | . 1 . 1 Crushed . | . . . . Highest Temperature 117 | 9 75 36 117 Average Temperature 31 | 6 31 12 38 Received Heat Transfer 1005 | . 72 210 723 Siege Activations . | . . . . Martial Activations . | . . . . Shielding Activations . | . . . . Robots Disrupted . | . . . . Combat Hostiles . | . . . . Robots Corrupted . | . . . . Combat Hostiles . | . . . . Parts Fried . | . . . . Impact Corruptions . | . . . . Robots Melted . | . . . . Combat Hostiles . | . . . . Parts Melted 2 | . . 1 1 Heat Transferred 2146 | . 222 1110 814 Parts Sabotaged . | . . . . Parts Stolen . | . . . . Parts Stripped . | . . . . Power Chain Reactions . | . . . . Alert | -11 -10 -9 -8 ------- Run | Yrd Mat Mat Mat Maximum Alert Level . | . . . . Low Security (%) 100 | 100 100 100 100 Level 1 . | . . . . Level 2 . | . . . . Level 3 . | . . . . Level 4 . | . . . . Level 5 . | . . . . High Security . | . . . . Max Security . | . . . . Peak Influence 197 | . 70 197 181 Initial 61 | . . 25 61 Average 86 | . 14 130 77 Influence Increases 949 | . 120 419 410 Destroy 0b10 Robot/C 700 | . 100 300 300 Destroy 0b10 Robot/NC 35 | . . 10 25 Destroy Leader 154 | . 20 82 52 Successful Hack 12 | . . 12 . Disable Machine 15 | . . 15 . Destroy Structure 33 | . . . 33 Influence Decreases 798 | . 60 334 404 Entered New Map 119 | . . 35 84 Time Decay 499 | . 60 289 150 Lost Part 180 | . . 10 170 Squads Dispatched 7 | . 1 2 4 Investigation 1 | . . 1 . Extermination . | . . . . Reinforcement 4 | . 1 1 2 Assault . | . . . . Garrison 2 | . . . 2 Intercept . | . . . . Searches Triggered . | . . . . Construction Impeded 2 | . . . 2 Haulers Reinforced . | . . . . Active Scanning Responses . | . . . . Cargo Convoy Interrupts . | . . . . Stealth | -11 -10 -9 -8 --------- Run | Yrd Mat Mat Mat Distress Signals 5 | . . 1 4 Communications Jammed . | . . . . Distress Signals . | . . . . Times Spotted 53 | . 8 21 24 Peak Tracking Total 8 | . 3 5 8 Tactical Retreats . | . . . . Traps | -11 -10 -9 -8 ------- Run | Yrd Mat Mat Mat Traps Triggered . | . . . . Indirectly . | . . . . Trap Hack Attempts . | . . . . Triggered . | . . . . Disarmed . | . . . . Reprogrammed . | . . . . Reused . | . . . . Traps Extracted . | . . . . Installed . | . . . . Triggered . | . . . . Machines | -11 -10 -9 -8 ---------- Run | Yrd Mat Mat Mat Machines Disabled 1 | . . 1 . Max in Single Turn 1 | . . 1 . Machines Repaired . | . . . . Machines Dismantled . | . . . . Machines Sabotaged . | . . . . Overloaded Fab Kills . | . . . . Hacking | -11 -10 -9 -8 --------- Run | Yrd Mat Mat Mat Machines Accessed 6 | . 1 5 . Terminals 4 | . 1 3 . Fabricators . | . . . . Repair Stations 1 | . . 1 . Recycling Units . | . . . . Scanalyzers 1 | . . 1 . Garrison Access . | . . . . Total Hacks 15 | . 2 13 . Successful 8 | . 1 7 . Failed 7 | . 1 6 . Catastrophic . | . . . . Database Lockouts . | . . . . Manual . | . . . . Terminals 8 | . 2 6 . Fabricators . | . . . . Repair Stations 3 | . . 3 . Recycling Units . | . . . . Scanalyzers 4 | . . 4 . Garrison Access . | . . . . Terminal Hacks 4 | . 1 3 . Record 3 | . . 3 . Alert Level 1 | . 1 . . Fabricator Hacks . | . . . . Repair Station Hacks 1 | . . 1 . Scan Component 1 | . . 1 . Recycling Unit Hacks . | . . . . Scanalyzer 3 | . . 3 . Insert Component 1 | . . 1 . Analyze 1 | . . 1 . Retrieve Study 1 | . . 1 . Garrison Access Hacks . | . . . . Unauthorized Hacks . | . . . . Terminals . | . . . . Fabricators . | . . . . Repair Stations . | . . . . Recycling Units . | . . . . Scanalyzers . | . . . . Garrison Access . | . . . . Data Cores Recovered . | . . . . Used . | . . . . Hacking Detections 5 | . 1 4 . Full Trace Events 1 | . . 1 . Feedback Events . | . . . . Feedback Blocked . | . . . . Robot Schematics Acquired . | . . . . Robots Built . | . . . . Authchips . | . . . . Time . | . . . . Total Robot Build Rating . | . . . . Part Schematics Acquired 1 | . . 1 . Parts Built . | . . . . Authchips . | . . . . Time . | . . . . Total Part Build Rating . | . . . . Part Studies Acquired 1 | . . 1 . Parts Repaired . | . . . . Time . | . . . . Parts Recycled . | . . . . Recycled Matter . | . . . . Retrieved Matter . | . . . . Retrieved Components . | . . . . Parts Scanalyzed 1 | . . 1 . Part Schematics Acquired 1 | . . 1 . Parts Damaged . | . . . . Bothacking | -11 -10 -9 -8 ------------ Run | Yrd Mat Mat Mat Used RIF Installer . | . . . . Robots Hacked . | . . . . Non-combat . | . . . . Combat . | . . . . Robot Hacks Applied . | . . . . Relay Couplers Released . | . . . . Fabnet Peak Effective % . | . . . . Robots Rewired . | . . . . Allies Hacked . | . . . . Hacks Repelled . | . . . . Allies | -11 -10 -9 -8 -------- Run | Yrd Mat Mat Mat Total Allies . | . . . . Largest Group . | . . . . Highest-Rated Group . | . . . . Highest-Rated Ally . | . . . . Total Orders . | . . . . Ally Attacks . | . . . . Total Damage . | . . . . Kills . | . . . . Allies Corrupted . | . . . . Allies Melted . | . . . . Intel | -11 -10 -9 -8 ------- Run | Yrd Mat Mat Mat Active Infowar (turns) . | . . . . Robot Analysis Total . | . . . . Derelict Logs Recovered . | . . . . Drone Launches . | . . . . Drone Recoveries . | . . . . Exploration | -11 -10 -9 -8 ------------- Run | Yrd Mat Mat Mat Turns Passed 1314 | 62 296 656 300 Spaces Moved 754 | 48 205 402 99 Core 29 | 15 . . 14 Treads . | . . . . Legs 725 | 33 205 402 85 Wheels . | . . . . Hover . | . . . . Flight . | . . . . Fastest Speed 50 | 50 120 120 120 Average Speed 121 | 98 120 120 142 Slowest Speed 250 | 120 120 120 250 Overloaded Moves . | . . . . Propulsion Burnouts . | . . . . Robots Hopped . | . . . . Potential Cave-ins . | . . . . Cave-ins Triggered . | . . . . Exploration Rate (%) 23 | 3 39 35 15 Regions Visited 3 Branch Regions . Pre-discovered Areas . | . . . . Known Exits Taken . | . . . . Unknown Exits Taken 3 | 1 1 1 . Scrap Searched . | . . . . Spaces Dug . | . . . . Terrain Destroyed 29 | . . . 29 Melee . | . . . . Projectile 5 | . . . 5 AOE 24 | . . . 24 Terrain Rammed . | . . . . Walls Destroyed . | . . . . Machines Disabled . | . . . . Actions | -11 -10 -9 -8 --------- Run | Yrd Mat Mat Mat Total 963 | 61 235 489 178 Wait 28 | . 10 11 7 Move 751 | 47 204 401 99 Hop . | . . . . Pick Up 35 | 7 7 9 12 Fast Attach . | . . . . Attach 26 | 6 1 5 14 Detach 2 | . . 2 . Swap 13 | . 1 9 3 Drop 11 | . 1 8 2 Fire 95 | 1 10 44 40 Melee . | . . . . Ram . | . . . . Kick 2 | . 1 . 1 Crush . | . . . . Escape Stasis . | . . . . Rewire . | . . . . Trap . | . . . . Miscellaneous . | . . . . Route ------- -11/Scrapyard -10/Materials -9/Materials -8/Materials History --------- Turn | Location | Event 13 | -11/Scrapyard | Discovered new exit (range 14) 63 | -11/Scrapyard | Entered Materials 275 | -10/Materials | Discovered new exit (range 7) 303 | -10/Materials | Build established: Mutant 359 | -10/Materials | Entered another Materials area 359 | -9/Materials | Evolved 2 slots: Power x1, Propulsion x1 541 | -9/Materials | Destroyed 7 combat bots 674 | -9/Materials | Discovered new exit (range 16) 958 | -9/Materials | Build established: Scavenger-Mutant 1015 | -9/Materials | Entered another Materials area 1015 | -8/Materials | Evolved 2 slots: Utility x1, Weapon x1 1148 | -8/Materials | Garrison activated, responded to threat 1229 | -8/Materials | Core integrity fell below 50% 1273 | -8/Materials | Core integrity fell below 20% 1308 | -8/Materials | Destroyed 9 combat bots 1315 | -8/Materials | Destroyed by G-47 Trooper with Particle Gun Last Messages --------------- Destroyed Grenade Launcher. G-47 Trooper destroyed. U-05 Engineer lays Concrete. The unstable cave ceiling collapses. U-05 Engineer lays Concrete. Acquired Aluminum Leg. U-05 Engineer builds a Wall. K-01 Serf collects debris. Lgt. Nuclear Core destroyed. K-01 Serf collects debris. U-05 Engineer builds a Door. Acquired Aluminum Leg. U-05 Engineer lays Concrete. R-06 Scavenger collects Wheel. R-06 Scavenger collects Particle Gun. U-05 Engineer lays Concrete. Acquired Imp. Heat Sink. K-01 Serf collects debris. U-05 Engineer builds a Wall. R-06 Scavenger collects Sml. Matter Pod. Map ----- +----------------------------------------------------+ | ???????????????# # #????????????????????? | | ???????????????# # #????????????????????? | | ???????????????# """ # #????????????????????? | | ???????????????# """ + #???######???????????? | | ???????????????# """ [ # #?? #???????????? | | ?????########??# # #?? #???????????? | | ?????# ########### #? #???????????? | | ?????# # # #? #???????????? | | ?????# # # # #???????????? | | ?????+ # """ """ # # #???????????? | | ?????# / # """ """ + + !! #???????????? | | ?????# # """ """ # # !! #???????????? | | ?????# # # # ! #???????????? | | ?????? # # #?########???????????? | | ????????? # # #????????????????????? | | ??????????#+####+######## #????????????????????? | | ??????????# # ! # #????????????????????? | | ??????????# # /u ###########??????????? | | ??????????# # # g %% % ???????? | | ??????????# # %% # % ???????? | | ??????????# # !% %% ???????? | | ??????????# # % = ########### ????????? | | ??????????# # = #% #???????????????????? | | ??????????# # ####### #kr #???????????????????? | | ??????????# ### /u #???????????????????? | | ????????? ?# #@ #???????????????????? | | ???????? + # #???????????????????? | | ??????? # """ """ #w ????????????????? | | ??????##### # """ """ #% """ ????????????? | | ??????????# # """ """ # # """ #???????????? | | ??????????# ########### """ ???????????????? | | ??????????# #????????## ???????????????? | | ??????????# ????????? # """ ???????????????? | | ??????????# ????????? # """ ??????????????? | | ??????????? ????????? # ""?????????????????? | | ??????????? ???????? #? ?????????????????? | | ??????????? ???????? #?##?????????????????? | | ??????????? ??????? #????????????????????? | | ??????????? ????????? #????????????????????? | | ???????????????????????? "????????????????????? | | ???????????????????????? ?????????????????????? | | ?????????????????????????????????????????????????? | | ?????????????????????????????????????????????????? | | ?????????????????????????????????????????????????? | | ?????????????????????????????????????????????????? | | ?????????????????????????????????????????????????? | | ?????????????????????????????????????????????????? | | ?????????????????????????????????????????????????? | | ?????????????????????????????????????????????????? | | ?????????????????????????????????????????????????? | +----------------------------------------------------+ Best States ------------- Heat Dissipation 45 Energy Generation 21 Energy Capacity 415 Matter Stores 300 Matter Capacity 300 Sight Range 16 Terrain Scan Density 10 Armor Coverage 150 Evasion (%) 55 Item Schematics ----------------- Particle Cannon | -9/Materials | Scanalyzed Robot Schematics ------------------ None Fabricated ------------ Nothing Repaired ---------- Nothing Studied --------- Ion Engine | -9/Materials | Hacked Alien Tech Used ----------------- None Achievements -------------- DATA ERROR: Steam Global Achievement% For Emergencies Only Hydra I Have A Map? Item+ Organ Harvest There's More Where That Came From Challenges ------------ None Game ------ Seed BlanketDynamicSuite Manual? 0 Play Time 00:18:01 Cumulative 6.9 hours Start 2025.10.29 @ 18:38:05 End 2025.10.29 @ 18:53:26 Sessions 1 Manual Loads 0 Difficulty Rogue Special Mode None Game No. 20 Rogue 20 Adventurer 0 Explorer 0 Win Type - Total 0 Types 0/0/0/0/0/0/0/0/0/0 Lore% 6 Gallery% 13 Achievement% 8 Wizard Run 0 Options --------- Layout 1 ASCII 0 Keyboard 0 Movement Mouse Keybinds 0 Fullscreen 1 Font 32/SmallcapsGlow Map View 50x35 Zoom Use 0% Tactical HUD 0 Map Filters NONE Filters NONE Steam 1 RUN: c01dcc03-d615-4ba2-9d65-cdf6807ce8af